bitfinex/quotes_BTCUSD_20230120
["timestamp","ask_amount","ask_price","bid_price","bid_amount"]
[1674234611853,0.4054,21385.0,21384.0,0.00568645]
[1674234612119,3.20306969,21385.0,21384.0,0.00568645]
[1674234612371,3.41107969,21385.0,21384.0,0.00568645]
[1674234613125,3.86586671,21385.0,21384.0,0.00568645]
[1674234613380,6.10763958,21385.0,21384.0,0.00568645]
[1674234614151,6.01663958,21385.0,21384.0,0.00568645]
[1674234614395,6.10763958,21385.0,21384.0,0.00568645]
[1674234614900,6.10763958,21385.0,21384.0,0.00326759]
[1674234615172,6.71943958,21385.0,21384.0,0.00326759]
[1674234615447,0.7615,21384.0,21381.0,0.00545976]
[1674234615699,0.7615,21384.0,21380.0,0.00509137]
[1674234615700,0.2831,21381.0,21380.0,0.00509137]
[1674234615939,3.85691471,21381.0,21380.0,0.00509137]
[1674234616199,3.86541471,21381.0,21380.0,0.00509137]
[1674234616448,4.91064677,21381.0,21380.0,0.00509137]
[1674234616973,4.91064677,21381.0,21379.0,0.00605755]
[1674234616974,4.4390169,21381.0,21379.0,0.00605755]
[1674234617235,1.52358871,21380.0,21379.0,0.00605755]
[1674234617484,2.80855071,21380.0,21379.0,0.00596168]
[1674234617740,5.74552358,21380.0,21379.0,0.00596168]
[1674234618099,5.41303656,21380.0,21379.0,0.00596168]
[1674234618280,5.74552358,21380.0,21379.0,0.00596168]
[1674234618789,5.41303656,21380.0,21379.0,0.00596168]
[1674234619050,5.22924835,21380.0,21379.0,0.00596168]
[1674234619823,4.93764835,21380.0,21379.0,0.00512939]
[1674234620072,4.53606369,21380.0,21379.0,0.00512939]
[1674234620333,4.83606369,21380.0,21379.0,0.00512939]
[1674234620605,4.72273861,21380.0,21379.0,0.00512939]
[1674234621368,4.26376369,21380.0,21379.0,0.00512939]
[1674234621626,4.60214934,21380.0,21379.0,0.00512939]
[1674234621877,4.75214934,21380.0,21379.0,0.00512939]
[1674234622140,4.53606369,21380.0,21379.0,0.00512939]
[1674234622399,5.45165071,21380.0,21379.0,0.00512939]
[1674234622661,5.9427529,21380.0,21379.0,0.00512939]
[1674234622919,6.0858529,21380.0,21379.0,0.00512939]
[1674234623437,0.01999061,21377.0,21375.0,0.00626145]
[1674234623705,2.29454369,21376.0,21375.0,0.00626145]
[1674234623960,3.08781358,21376.0,21375.0,0.00626145]
[1674234624214,2.78555369,21376.0,21375.0,0.00626145]
[1674234624466,2.66325369,21376.0,21375.0,0.00626145]
[1674234624712,2.9609717,21376.0,21375.0,0.00626145]
[1674234624968,2.9609717,21376.0,21375.0,0.00346545]
[1674234625218,2.66325369,21376.0,21375.0,0.00346545]
[1674234625488,2.81325369,21376.0,21375.0,0.00346545]
[1674234625846,2.75425369,21376.0,21375.0,0.00346545]
[1674234626002,0.758324,21376.0,21375.0,0.19778642]
[1674234626260,0.091,21376.0,21375.0,0.05790485]
[1674234626824,0.091,21376.0,21375.0,0.09653545]
[1674234627081,0.01999061,21377.0,21375.0,0.82435145]
[1674234627338,0.01999061,21377.0,21376.0,0.328047]
[1674234627602,0.01999061,21377.0,21376.0,0.928047]
[1674234627874,0.01999061,21377.0,21376.0,0.927613]
[1674234628139,0.01999061,21377.0,21376.0,0.6]
[1674234628454,0.02699061,21377.0,21376.0,1.60114524]
[1674234628719,0.01999061,21377.0,21376.0,1.59314524]
[1674234628981,0.01999061,21377.0,21376.0,1.8182708]
[1674234628982,0.02699061,21377.0,21376.0,1.8182708]
[1674234629253,0.02699061,21377.0,21376.0,1.380723]
[1674234629519,0.02699061,21377.0,21376.0,1.65493884]
[1674234629808,0.007,21377.0,21376.0,1.80493884]
[1674234630335,0.007,21377.0,21376.0,1.530723]
[1674234630841,0.007,21377.0,21376.0,1.775323]
[1674234631605,2.5606,21380.0,21376.0,1.767323]
[1674234631857,2.5606,21380.0,21379.0,0.1223]
[1674234632104,2.5606,21380.0,21379.0,0.905473]
[1674234632351,2.5606,21380.0,21379.0,1.070026]
[1674234633104,2.5606,21380.0,21379.0,1.132026]
[1674234633105,2.5636,21380.0,21379.0,1.132026]
[1674234633402,2.5636,21380.0,21379.0,1.282026]
[1674234633903,2.5606,21380.0,21379.0,1.220026]
[1674234634182,2.5636,21380.0,21379.0,2.004326]
[1674234634684,2.5636,21380.0,21379.0,1.777773]
[1674234634939,2.5606,21380.0,21379.0,1.777773]
[1674234635188,2.5636,21380.0,21379.0,1.839773]
[1674234635450,2.5636,21380.0,21379.0,2.2835029]
[1674234635978,2.5636,21380.0,21379.0,1.6835029]
[1674234636251,2.5636,21380.0,21379.0,1.60610899]
[1674234636497,2.5636,21380.0,21379.0,2.20610899]
[1674234637289,2.5636,21380.0,21379.0,2.18202903]
[1674234637845,2.5636,21380.0,21379.0,1.58202903]
[1674234638392,2.5636,21380.0,21379.0,1.239773]
[1674234639248,2.5636,21380.0,21379.0,1.58878444]
[1674234640028,2.5636,21380.0,21379.0,1.239773]
[1674234640312,2.5636,21380.0,21379.0,0.499725]
[1674234640565,2.5636,21380.0,21379.0,0.967473]
[1674234640815,2.5636,21380.0,21379.0,0.83115577]
[1674234641061,2.5636,21380.0,21379.0,0.51573077]
[1674234642161,2.5636,21380.0,21379.0,0.66573077]
[1674234642440,2.5636,21380.0,21379.0,0.51573077]
[1674234642705,2.5636,21380.0,21379.0,0.39343077]
[1674234642984,2.5636,21380.0,21379.0,0.529748]
[1674234643243,2.5636,21380.0,21379.0,0.062]
[1674234643495,2.5636,21380.0,21379.0,0.042]
[1674234644474,2.5636,21380.0,21379.0,0.13507]
[1674234644479,2.5636,21380.0,21379.0,0.53025855]
[1674234645271,2.5636,21380.0,21379.0,0.99800655]
[1674234645800,2.5636,21380.0,21379.0,1.31493555]
[1674234646328,2.5636,21380.0,21379.0,1.5822128]
[1674234646582,2.5636,21380.0,21379.0,1.7322128]
[1674234646848,2.5636,21380.0,21379.0,1.8541128]
[1674234647367,2.5636,21380.0,21379.0,2.3218608]
[1674234648670,2.5636,21380.0,21379.0,1.92667225]
[1674234648922,2.5636,21380.0,21379.0,2.29088875]
[1674234649517,2.5636,21380.0,21379.0,1.92667225]
[1674234649706,2.5636,21380.0,21379.0,2.22667225]
[1674234650748,2.5636,21380.0,21379.0,2.23517225]
[1674234651006,2.5636,21380.0,21379.0,2.96917225]
[1674234651532,2.5606,21380.0,21379.0,2.92717225]
[1674234651803,2.5626,21380.0,21379.0,2.75849143]
[1674234652289,2.5606,21380.0,21379.0,2.38749143]
[1674234652550,2.5626,21380.0,21379.0,1.96794418]
[1674234653339,2.5626,21380.0,21379.0,1.89694418]
[1674234653340,2.5606,21380.0,21379.0,1.89694418]
[1674234653587,2.5626,21380.0,21379.0,2.2884234]
[1674234653841,2.5606,21380.0,21379.0,2.2224234]
[1674234654106,2.5626,21380.0,21379.0,1.91580422]
[1674234654400,2.5626,21380.0,21379.0,2.18092565]
[1674234654401,2.5606,21380.0,21379.0,2.18092565]
[1674234654709,2.5626,21380.0,21379.0,2.24692565]
[1674234655014,2.5626,21380.0,21379.0,2.22430422]
[1674234655266,2.5606,21380.0,21379.0,2.28060422]
[1674234656078,2.5606,21380.0,21379.0,2.89200422]
[1674234656335,2.5606,21380.0,21379.0,2.95800422]
[1674234656336,1.933116,21380.0,21379.0,2.95800422]
[1674234656604,1.0,21385.0,21380.0,0.15]
[1674234656874,1.0,21385.0,21384.0,0.2444]
[1674234657136,1.0,21385.0,21384.0,2.422878]
[1674234657709,1.002,21385.0,21384.0,2.84459392]
[1674234657982,1.0,21385.0,21384.0,3.14405331]
[1674234659101,1.002,21385.0,21384.0,3.21205331]
[1674234659362,1.002,21385.0,21384.0,2.62211431]
[1674234661472,1.002,21385.0,21384.0,2.15447531]
[1674234663011,1.002,21385.0,21384.0,1.68683631]
[1674234663517,1.002,21385.0,21384.0,1.85501592]
[1674234664089,1.002,21385.0,21384.0,1.38737692]
[1674234664326,1.002,21385.0,21384.0,0.91973792]
[1674234664822,1.40532689,21385.0,21384.0,0.068]
[1674234665432,1.40032689,21385.0,21384.0,0.068]
[1674234665592,1.40032689,21385.0,21384.0,1.003278]
[1674234665845,1.40032689,21385.0,21384.0,0.63970057]
[1674234666100,1.40032689,21385.0,21384.0,0.97569265]
[1674234666584,1.40032689,21385.0,21384.0,1.44333165]
[1674234666854,0.997,21385.0,21384.0,1.93053949]
[1674234667905,0.997,21385.0,21384.0,1.56523165]
[1674234668152,0.997,21385.0,21384.0,1.68753165]
[1674234668412,0.997,21385.0,21384.0,2.19720481]
[1674234668918,0.997,21385.0,21384.0,2.04720481]
[1674234671507,0.997,21385.0,21384.0,1.92530481]
[1674234672319,0.997,21385.0,21384.0,1.46157008]
[1674234672595,1.45382739,21385.0,21384.0,1.02680608]
[1674234672850,1.45382739,21385.0,21384.0,0.55916708]
[1674234673939,1.45382739,21385.0,21384.0,0.09152808]
[1674234674504,0.997,21385.0,21384.0,0.61385892]
[1674234674768,0.997,21385.0,21384.0,1.99078592]
[1674234675030,0.997,21385.0,21384.0,1.88080279]
[1674234676340,0.997,21385.0,21384.0,1.75850279]
[1674234677194,0.997,21385.0,21384.0,1.34615508]
[1674234677459,0.997,21385.0,21384.0,1.49615508]
[1674234677718,0.997,21385.0,21384.0,2.14496898]
[1674234678234,0.997,21385.0,21384.0,1.99496898]
[1674234679056,0.997,21385.0,21384.0,1.61649099]
[1674234679324,0.997,21385.0,21384.0,1.60620099]
[1674234680076,0.997,21385.0,21384.0,1.29714199]
[1674234680356,0.997,21385.0,21384.0,1.63722399]
[1674234681168,0.997,21385.0,21384.0,2.07180237]
[1674234682991,0.997,21385.0,21384.0,1.36688808]
[1674234683252,0.997,21385.0,21384.0,1.02680608]
[1674234683517,0.997,21385.0,21384.0,1.68354277]
[1674234688255,0.997,21385.0,21384.0,1.68343262]
[1674234690018,0.997,21385.0,21384.0,1.83343262]
[1674234690192,0.997,21385.0,21384.0,2.15253788]
[1674234690411,0.997,21385.0,21384.0,1.82081519]
[1674234690641,0.997,21385.0,21384.0,2.24251278]
[1674234692213,0.995,21385.0,21384.0,2.17462293]
[1674234692426,0.998,21385.0,21384.0,2.23662293]
[1674234693094,0.995,21385.0,21384.0,2.02462293]
[1674234694063,0.998,21385.0,21384.0,2.08662293]
[1674234694322,0.998,21385.0,21384.0,1.34582008]
[1674234694554,1.001,21385.0,21384.0,1.08280608]
[1674234695274,1.001,21385.0,21384.0,1.47653107]
[1674234695521,1.001,21385.0,21384.0,1.79548107]
[1674234695994,1.001,21385.0,21384.0,2.08356048]
[1674234696999,1.001,21385.0,21384.0,1.98356048]
[1674234698250,1.001,21385.0,21384.0,1.66461048]
[1674234698485,1.001,21385.0,21384.0,1.37653107]
[1674234699457,1.001,21385.0,21384.0,1.70352207]
[1674234700189,1.001,21385.0,21384.0,2.17116107]
[1674234701699,1.001,21385.0,21384.0,1.77743608]
[1674234702039,1.001,21385.0,21384.0,2.16643699]
[1674234702238,1.001,21385.0,21384.0,2.46643699]
[1674234702747,1.001,21385.0,21384.0,2.16643699]
[1674234702998,1.001,21385.0,21384.0,2.73823699]
[1674234704015,0.995,21385.0,21384.0,2.61423699]
[1674234704287,0.996,21385.0,21384.0,3.09050685]
[1674234704593,0.995,21385.0,21384.0,3.00950685]
[1674234704783,0.996,21385.0,21384.0,2.69523699]
[1674234705031,0.996,21385.0,21384.0,2.61423699]
[1674234705285,0.997,21385.0,21384.0,2.69523699]
[1674234705534,0.26057479,21385.0,21384.0,2.81463731]
[1674234705771,0.26057479,21385.0,21384.0,2.70373699]
[1674234706058,0.26057479,21385.0,21384.0,3.31443699]
[1674234707551,0.01800579,21385.0,21384.0,3.98595965]
[1674234707796,0.01310253,21389.0,21385.0,0.15]
[1674234708059,0.01310253,21389.0,21388.0,0.2438]
[1674234708342,0.01310253,21389.0,21388.0,1.949561]
[1674234709555,0.01310253,21389.0,21388.0,1.827361]
[1674234710040,0.01310253,21389.0,21388.0,1.920361]
[1674234710295,0.01310253,21389.0,21388.0,2.18706191]
[1674234710788,0.01310253,21389.0,21388.0,2.33706191]
[1674234711097,0.01310253,21389.0,21388.0,2.63706191]
[1674234711825,0.01310253,21389.0,21388.0,2.51546191]
[1674234712117,0.01310253,21389.0,21388.0,2.83168288]
[1674234712371,0.01310253,21389.0,21388.0,2.64586191]
[1674234712619,5.3e-07,21389.0,21388.0,2.64586191]
[1674234712871,0.01310253,21394.0,21389.0,0.15]
[1674234713110,0.01310253,21394.0,21391.0,0.1223]
[1674234713359,0.01310253,21394.0,21393.0,0.15]
[1674234713620,0.01310253,21394.0,21393.0,1.397354]
[1674234715092,0.01310253,21394.0,21393.0,1.790354]
[1674234715363,0.01310253,21394.0,21393.0,1.697354]
[1674234715606,0.01310253,21394.0,21393.0,1.92481433]
[1674234715877,0.01310253,21394.0,21393.0,2.16941433]
[1674234716144,0.01310253,21394.0,21393.0,2.17791433]
[1674234716864,0.01310253,21394.0,21393.0,2.08491433]
[1674234718113,0.01310253,21394.0,21393.0,2.17691433]
[1674234718854,0.01310253,21394.0,21393.0,2.08904295]
[1674234719105,0.01310253,21394.0,21393.0,1.74611433]
[1674234720584,0.01310253,21394.0,21393.0,2.04611433]
[1674234720828,0.01310253,21394.0,21393.0,2.19437697]
[1674234721075,0.01310253,21394.0,21393.0,1.92207697]
[1674234721794,0.11763253,21394.0,21393.0,1.92207697]
[1674234722056,0.11763253,21394.0,21393.0,1.339354]
[1674234722318,0.01310253,21394.0,21393.0,0.559442]
[1674234722564,0.01310253,21394.0,21393.0,1.026884]
[1674234722810,0.01310253,21394.0,21393.0,1.28198952]
[1674234723310,0.01310253,21394.0,21393.0,2.02642553]
[1674234724570,0.01310253,21394.0,21393.0,1.69874053]
[1674234724836,0.01310253,21394.0,21393.0,1.44363501]
[1674234726585,0.01310253,21394.0,21393.0,1.77245101]
[1674234727330,0.01310253,21394.0,21393.0,1.92245101]
[1674234727829,0.01310253,21394.0,21393.0,1.77245101]
[1674234728079,0.25408616,21394.0,21393.0,0.559442]
[1674234728321,0.44730032,21394.0,21393.0,1.026884]
[1674234728564,0.34277032,21394.0,21393.0,1.026884]
[1674234728827,0.34277032,21394.0,21393.0,0.559442]
[1674234729065,0.34277032,21394.0,21393.0,0.6168786]
[1674234729302,0.02010253,21394.0,21393.0,0.939884]
[1674234729549,0.01310253,21394.0,21393.0,0.934884]
[1674234729803,0.02010253,21394.0,21393.0,0.939884]
[1674234730066,0.02010253,21394.0,21393.0,1.08482572]
[1674234730313,0.46288125,21394.0,21393.0,0.472442]
[1674234730568,0.46288125,21394.0,21393.0,0.005]
[1674234730816,0.45588125,21394.0,21392.0,0.934893]
[1674234731086,0.46288125,21394.0,21393.0,0.005]
[1674234731349,0.46988125,21394.0,21393.0,0.005]
[1674234731604,0.46988125,21394.0,21393.0,0.182194]
[1674234731858,0.45588125,21394.0,21392.0,0.467445]
[1674234732109,0.19951,21393.0,21392.0,0.467445]
[1674234732352,0.45588125,21394.0,21392.0,1.07512313]
[1674234732594,0.46288125,21394.0,21392.0,1.07512313]
[1674234733586,0.45588125,21394.0,21392.0,1.07512313]
[1674234733822,0.45588125,21394.0,21393.0,0.15425911]
[1674234734077,0.45588125,21394.0,21391.0,0.467468]
[1674234734078,0.3954837,21393.0,21391.0,0.467468]
[1674234734350,0.19951,21392.0,21391.0,0.467468]
[1674234734598,0.3954837,21393.0,21391.0,0.467468]
[1674234735088,0.3954837,21393.0,21390.0,1.28725601]
[1674234735329,0.20051,21392.0,21391.0,0.086]
[1674234735563,0.3954837,21393.0,21391.0,0.3913943]
[1674234735819,0.3954837,21393.0,21392.0,0.1002613]
[1674234736795,0.3954837,21393.0,21392.0,0.1642613]
[1674234737042,0.3954837,21393.0,21392.0,0.064]
[1674234737532,0.5949937,21393.0,21392.0,0.064]
[1674234738030,0.7449937,21393.0,21392.0,0.064]
[1674234738524,1.2124357,21393.0,21392.0,0.064]
[1674234738804,1.6798777,21393.0,21392.0,0.064]
[1674234739045,1.6648777,21393.0,21392.0,0.064]
[1674234739285,1.239252,21393.0,21392.0,0.064]
[1674234739529,2.15427951,21393.0,21392.0,0.064]
[1674234739810,1.85427951,21393.0,21392.0,0.064]
[1674234740551,1.38683751,21393.0,21392.0,0.064]
[1674234741032,1.85427951,21393.0,21392.0,0.064]
[1674234741549,1.406694,21393.0,21392.0,0.064]
[1674234742044,1.84068101,21393.0,21392.0,0.0704]
[1674234742303,1.84068101,21393.0,21392.0,0.064]
[1674234742555,0.90579701,21393.0,21392.0,0.064]
[1674234742795,1.22323901,21393.0,21390.0,0.34334736]
[1674234743045,0.19951,21392.0,21390.0,0.4711878]
[1674234743278,0.467486,21391.0,21387.0,0.467571]
[1674234743522,0.23249363,21390.0,21388.0,0.38289339]
[1674234743780,0.10453,21390.0,21388.0,0.85043639]
[1674234744033,0.10453,21390.0,21388.0,0.38289339]
[1674234744288,0.589288,21391.0,21389.0,0.33419361]
[1674234744524,0.40028294,21392.0,21389.0,0.65544534]
[1674234745013,0.38928294,21392.0,21389.0,1.59050534]
[1674234745251,0.38928294,21392.0,21389.0,1.26925361]
[1674234745483,0.38928294,21392.0,21390.0,0.470167]
[1674234745721,0.40028294,21392.0,21391.0,0.467486]
[1674234745972,0.011,21392.0,21391.0,1.31866373]
[1674234746226,0.011,21392.0,21391.0,1.44364776]
[1674234746518,0.40910071,21393.0,21391.0,1.44364776]
[1674234746793,0.40910071,21393.0,21392.0,0.52352558]
[1674234747044,0.01310253,21394.0,21392.0,1.14104258]
[1674234747523,0.01310253,21394.0,21392.0,1.53469618]
[1674234747769,0.01310253,21394.0,21393.0,0.315479]
[1674234748020,0.01310253,21394.0,21393.0,0.26570319]
[1674234748492,0.02210253,21394.0,21393.0,0.934884]
[1674234748788,0.01310253,21394.0,21393.0,0.934884]
[1674234749062,0.02210253,21394.0,21393.0,0.939884]
[1674234749287,0.02210253,21394.0,21393.0,1.29998256]
[1674234749538,0.02210253,21394.0,21393.0,1.62774456]
[1674234749770,0.02210253,21394.0,21393.0,1.98068339]
[1674234750014,0.02210253,21394.0,21393.0,1.51324139]
[1674234750263,0.02210253,21394.0,21393.0,1.15314283]
[1674234750504,0.02210253,21394.0,21393.0,1.29282283]
[1674234752059,0.02210253,21394.0,21393.0,1.61354183]
[1674234752820,0.02210253,21394.0,21393.0,1.76354183]
[1674234753307,0.02210253,21394.0,21393.0,1.29282283]
[1674234754306,0.02210253,21394.0,21393.0,0.82538083]
[1674234754561,0.02210253,21394.0,21393.0,1.29282283]
[1674234755053,0.02210253,21394.0,21393.0,0.939884]
[1674234755302,0.02210253,21394.0,21393.0,1.257812]
[1674234755551,0.02210253,21394.0,21393.0,1.72724283]
[1674234755794,0.02210253,21394.0,21393.0,1.407812]
[1674234756039,0.02210253,21394.0,21393.0,1.6103374]
[1674234756806,0.02210253,21394.0,21393.0,1.9103374]
[1674234757062,0.02210253,21394.0,21393.0,1.6103374]
[1674234757834,0.01310253,21394.0,21393.0,1.6053374]
[1674234758053,0.01410253,21394.0,21393.0,2.2149374]
[1674234758300,0.01310253,21394.0,21393.0,2.1449374]
[1674234758564,0.01310253,21394.0,21393.0,2.1534374]
[1674234758799,0.01310253,21394.0,21393.0,2.2364374]
[1674234758800,0.01410253,21394.0,21393.0,2.2364374]
[1674234759534,5.3e-07,21394.0,21393.0,2.2364374]
[1674234760026,0.01379293,21398.0,21394.0,0.15]
[1674234760268,0.01379293,21398.0,21397.0,0.1219]
[1674234760512,0.01379293,21398.0,21397.0,1.855413]
[1674234761004,0.01379293,21398.0,21397.0,1.733513]
[1674234761524,0.01379293,21398.0,21397.0,2.02083397]
[1674234761774,0.01379293,21398.0,21397.0,1.97830119]
[1674234762024,0.01379293,21398.0,21397.0,2.07130119]
[1674234762511,0.01379293,21398.0,21397.0,2.49360119]
[1674234762766,0.01379293,21398.0,21397.0,2.30760119]
[1674234763014,0.01379293,21398.0,21397.0,2.40910119]
[1674234763789,0.01364197,21398.0,21397.0,2.40910119]
[1674234764036,9.7e-07,21398.0,21397.0,2.40910119]
[1674234764524,9.7e-07,21398.0,21397.0,2.65464563]
[1674234764764,9.7e-07,21398.0,21397.0,2.74764563]
[1674234764997,9.7e-07,21398.0,21397.0,3.41916829]
[1674234765262,9.7e-07,21398.0,21397.0,3.93604732]
[1674234765512,9.7e-07,21398.0,21397.0,3.84304732]
[1674234765773,9.7e-07,21398.0,21397.0,3.93604732]
[1674234766270,9.7e-07,21398.0,21397.0,3.75004732]
[1674234766512,9.7e-07,21398.0,21397.0,3.74594732]
[1674234766770,9.7e-07,21398.0,21397.0,4.10918761]
[1674234767015,9.7e-07,21398.0,21397.0,4.06544377]
[1674234767263,9.7e-07,21398.0,21397.0,3.19494563]
[1674234767542,9.7e-07,21398.0,21397.0,2.5057011]
[1674234767778,9.7e-07,21398.0,21397.0,2.06000119]
[1674234768525,9.7e-07,21398.0,21397.0,2.05150119]
[1674234769022,9.7e-07,21398.0,21397.0,2.35150119]
[1674234769767,9.7e-07,21398.0,21397.0,2.75575437]
[1674234770250,9.7e-07,21398.0,21397.0,2.73379693]
[1674234770503,9.7e-07,21398.0,21397.0,2.78320061]
[1674234770762,9.7e-07,21398.0,21397.0,2.35150119]
[1674234770993,9.7e-07,21398.0,21397.0,2.5119991]
[1674234772015,0.20800097,21398.0,21397.0,0.890803]
[1674234772258,9.7e-07,21398.0,21397.0,1.02139486]
[1674234772769,9.7e-07,21398.0,21397.0,1.3689406]
[1674234773016,9.7e-07,21398.0,21397.0,1.92819098]
[1674234773751,9.7e-07,21398.0,21397.0,1.48864524]
[1674234774024,0.00100097,21398.0,21397.0,1.01439486]
[1674234774274,0.00100097,21398.0,21397.0,0.92939486]
[1674234774275,0.20800097,21398.0,21397.0,0.92939486]
[1674234774534,0.00100097,21398.0,21397.0,1.19944252]
[1674234775550,0.00100097,21398.0,21397.0,1.51483252]
[1674234775815,0.00100097,21398.0,21397.0,1.66483252]
[1674234776054,0.00100097,21398.0,21397.0,2.11588179]
[1674234776533,0.00100097,21398.0,21397.0,2.18998179]
[1674234777778,0.00100097,21398.0,21397.0,1.73893252]
[1674234778022,0.00100097,21398.0,21397.0,2.03893252]
[1674234781011,0.00100097,21398.0,21397.0,1.73893252]
[1674234781258,0.00100097,21398.0,21397.0,2.03893252]
[1674234781501,0.00100097,21398.0,21397.0,1.73893252]
[1674234781740,0.00100097,21398.0,21397.0,2.03893252]
[1674234782228,0.00100097,21398.0,21397.0,2.13188189]
[1674234782523,0.00100097,21398.0,21397.0,2.05778189]
[1674234783779,0.00100097,21398.0,21397.0,1.87373423]
[1674234784785,0.00100097,21398.0,21397.0,1.55834423]
[1674234785031,0.00100097,21398.0,21397.0,1.55011686]
[1674234785273,0.00100097,21398.0,21397.0,1.88439169]
[1674234785558,0.00100097,21398.0,21397.0,1.81079169]
[1674234786054,0.00100097,21398.0,21397.0,1.66079169]
[1674234786304,0.00100097,21398.0,21397.0,1.34966969]
[1674234786790,0.10553097,21398.0,21397.0,1.34966969]
[1674234787532,0.00100097,21398.0,21397.0,1.34966969]
[1674234789032,0.00100097,21398.0,21397.0,1.60811266]
[1674234789280,0.00100097,21398.0,21397.0,1.98200693]
[1674234789522,0.00100097,21398.0,21397.0,2.07412483]
[1674234789768,0.00100097,21398.0,21397.0,2.64680296]
[1674234791001,0.00100097,21398.0,21397.0,2.38835999]
[1674234791239,0.00100097,21398.0,21397.0,2.05542799]
[1674234792243,0.00100097,21398.0,21397.0,2.38580599]
[1674234792534,0.20900097,21398.0,21397.0,1.81312786]
[1674234792783,0.5384035,21398.0,21397.0,0.54803986]
[1674234793030,0.6344435,21398.0,21397.0,0.54803986]
[1674234793293,0.00100097,21398.0,21397.0,1.01539486]
[1674234794262,0.00100097,21398.0,21397.0,1.36174896]
[1674234795511,0.00100097,21398.0,21397.0,0.89439396]
[1674234795768,0.10553097,21398.0,21397.0,1.01539486]
[1674234796018,0.50123726,21398.0,21397.0,1.01539486]
[1674234796502,0.50123726,21398.0,21397.0,0.54803986]
[1674234796748,1.14476523,21398.0,21397.0,0.086]
[1674234796987,2.25949329,21398.0,21397.0,0.08592792]
[1674234797252,2.25949329,21398.0,21392.0,0.467452]
[1674234797253,0.15,21397.0,21392.0,0.467452]
[1674234797509,1.58311825,21396.0,21390.0,3.14829]
[1674234797751,0.0742,21393.0,21390.0,0.46749]
[1674234797999,0.10718363,21393.0,21390.0,0.46749]
[1674234798252,0.19951,21392.0,21389.0,0.86317566]
[1674234798495,0.22068363,21392.0,21389.0,0.86317566]
[1674234798766,0.19951,21391.0,21389.0,0.39566566]
[1674234799016,0.0742,21391.0,21388.0,0.42540591]
[1674234799517,0.33462306,21390.0,21388.0,0.00594972]
[1674234800045,0.33462306,21390.0,21388.0,1.12455763]
[1674234800297,0.36236574,21391.0,21388.0,0.94104672]
[1674234800547,0.42343304,21390.0,21388.0,0.94104672]
[1674234800791,0.45641667,21390.0,21388.0,0.00594972]
[1674234801045,0.42343304,21390.0,21388.0,0.00594972]
[1674234801782,0.43343304,21390.0,21388.0,0.00594972]
[1674234802022,0.43100863,21389.0,21388.0,0.00594972]
[1674234803568,0.50520863,21389.0,21388.0,0.00594972]
[1674234803814,0.71371863,21389.0,21388.0,0.00594972]
[1674234804296,0.70471863,21389.0,21388.0,0.00594972]
[1674234804538,0.50520863,21389.0,21388.0,0.00594972]
[1674234804793,0.79571863,21389.0,21388.0,0.00594972]
[1674234805047,0.70471863,21389.0,21388.0,0.00594972]
[1674234805779,1.15471863,21389.0,21388.0,0.00594972]
[1674234806032,0.70471863,21389.0,21388.0,0.00594972]
[1674234806283,0.94571863,21389.0,21388.0,0.00594972]
[1674234807038,0.51471,21389.0,21388.0,0.00594972]
[1674234807273,1.08033403,21389.0,21388.0,0.00594972]
[1674234807524,1.17133403,21389.0,21388.0,0.00594972]
[1674234807775,0.70486027,21389.0,21388.0,0.00594972]
[1674234808020,0.29051,21389.0,21388.0,0.00594972]
[1674234808278,0.091,21389.0,21388.0,0.00594972]
[1674234808518,0.091,21389.0,21388.0,1.3708587]
[1674234808782,0.091,21389.0,21388.0,1.59162866]
[1674234809283,0.091,21389.0,21388.0,1.3708587]
[1674234810997,0.091,21389.0,21388.0,0.94105172]
[1674234811269,0.51048131,21389.0,21388.0,0.47350072]
[1674234811512,0.51048131,21389.0,21388.0,0.00594972]
[1674234811762,0.51048131,21389.0,21388.0,0.94105172]
[1674234812248,0.51048131,21389.0,21388.0,0.47350072]
[1674234812516,0.51048131,21389.0,21388.0,0.00594972]
[1674234813009,1.05211131,21389.0,21388.0,0.00594972]
[1674234813259,1.25162131,21389.0,21388.0,0.00594972]
[1674234813509,1.40162131,21389.0,21388.0,0.00594972]
[1674234813747,1.70162131,21389.0,21388.0,0.00594972]
[1674234813983,0.93409131,21389.0,21388.0,0.00594972]
[1674234814244,0.78409131,21389.0,21388.0,0.00594972]
[1674234814479,1.08409131,21389.0,21388.0,0.00594972]
[1674234814729,1.23409131,21389.0,21388.0,0.00594972]
[1674234814973,1.98770574,21389.0,21388.0,0.00594972]
[1674234815454,1.56822443,21389.0,21388.0,0.00594972]
[1674234815704,1.74935875,21389.0,21388.0,0.00594972]
[1674234815957,2.20681602,21389.0,21388.0,0.00594972]
[1674234816460,1.74935875,21389.0,21388.0,0.00594972]
[1674234816747,1.82355875,21389.0,21388.0,0.00594972]
[1674234816979,2.11080742,21389.0,21388.0,0.00594972]
[1674234817224,2.19636684,21389.0,21388.0,0.00594972]
[1674234817546,2.30076044,21389.0,21388.0,0.00594972]
[1674234817979,2.30076044,21389.0,21388.0,0.00336432]
[1674234818211,2.30107169,21389.0,21388.0,0.00336432]
[1674234818449,1.83354169,21389.0,21388.0,0.00336432]
[1674234818691,2.30107169,21389.0,21388.0,0.00336432]
[1674234818944,2.57439229,21389.0,21388.0,0.00336432]
[1674234819678,2.50447262,21389.0,21388.0,0.00336432]
[1674234820429,2.15107169,21389.0,21388.0,0.00336432]
[1674234820930,2.30107169,21389.0,21388.0,0.00336432]
[1674234821913,2.58077966,21389.0,21388.0,0.00336432]
[1674234822161,2.28077966,21389.0,21388.0,0.00336432]
[1674234822403,0.79431797,21389.0,21388.0,0.00336432]
[1674234822893,1.05027237,21389.0,21388.0,0.00336432]
[1674234823159,0.79431797,21389.0,21388.0,0.00336432]
[1674234823640,2.15107169,21389.0,21388.0,0.00336432]
[1674234823951,2.30107169,21389.0,21388.0,0.00336432]
[1674234824432,2.73204798,21389.0,21388.0,0.00336432]
[1674234824693,2.30107169,21389.0,21388.0,0.00336432]
[1674234824944,2.68170146,21389.0,21388.0,0.00336432]
[1674234825714,2.68180146,21389.0,21388.0,0.00336432]
[1674234827177,2.98294314,21389.0,21388.0,0.00336432]
[1674234827416,3.26494314,21389.0,21388.0,0.00336432]
[1674234827668,3.69964314,21389.0,21388.0,0.00336432]
[1674234829119,3.69964314,21389.0,21388.0,0.00132741]
[1674234829625,3.31901337,21389.0,21388.0,0.00132741]
[1674234830883,3.43078032,21389.0,21388.0,0.00132741]
[1674234831130,3.31901337,21389.0,21388.0,0.00132741]
[1674234831666,3.46901337,21389.0,21388.0,0.00132741]
[1674234831909,3.58078032,21389.0,21388.0,0.00132741]